fUST/lending_fUST_20240808
["ID","MTS","AMOUNT","RATE_DAILY","PERIOD"]
[334428642,1723089039586,-500.0,0.00027397,7]
[334428645,1723089039597,-500.55716379,0.00027397,7]
[334428647,1723089039607,-500.0,0.00027397,7]
[334428649,1723089039617,-520.31186877,0.00027397,7]
[334428651,1723089039628,-500.0,0.00027397,7]
[334428653,1723089039639,-500.0,0.00027397,7]
[334428655,1723089039651,-500.0,0.00027397,7]
[334428657,1723089039662,-500.0,0.00027397,7]
[334428659,1723089039673,-500.0,0.00027397,7]
[334428661,1723089039683,-501.72656972,0.00027397,7]
[334428663,1723089039695,-500.0,0.00027397,7]
[334428665,1723089039705,-501.73118128,0.00027397,7]
[334428668,1723089039716,-500.0,0.00027397,7]
[334428670,1723089039728,-500.0,0.00027397,7]
[334428672,1723089039739,-500.0,0.00027397,7]
[334428674,1723089039749,-500.0,0.00027397,7]
[334428676,1723089039759,-500.0,0.00027397,7]
[334428678,1723089039769,-500.0,0.00027397,7]
[334428679,1723089039779,-500.0,0.00027397,7]
[334428680,1723089039790,-500.0,0.00027397,7]
[334428681,1723089039800,-500.0,0.00027397,7]
[334428682,1723089039810,-500.0,0.00027397,7]
[334428683,1723089039820,-619.30765322,0.00027397,7]
[334428684,1723089039831,-501.10103205,0.00027397,7]
[334428685,1723089039840,-501.22501827,0.00027397,7]
[334428686,1723089039850,-501.14263449,0.00027397,5]
[334428687,1723089039861,-502.41266225,0.00027397,7]
[334428688,1723089039871,-500.0,0.00027397,7]
[334428689,1723089039889,-500.0,0.00027397,7]
[334428690,1723089039901,-504.76325848,0.00027397,7]
[334428691,1723089039911,-500.0,0.00027397,7]
[334428692,1723089039921,-500.0,0.00027397,7]
[334428693,1723089039932,-154.83369012,0.00027397,7]
[334428694,1723089039941,-500.0,0.00027397,7]
[334428695,1723089039953,-524.17969768,0.00027397,7]
[334428696,1723089039963,-1271.14,0.00027397,7]
[334428697,1723089039973,-501.61089599,0.00027397,7]
[334428698,1723089039985,-500.0,0.00027397,7]
[334428699,1723089040000,-500.0,0.00027397,7]
[334428700,1723089040012,-558.97232804,0.00027397,7]
[334428701,1723089040024,-502.04147043,0.00027397,7]
[334428702,1723089040035,-503.32861438,0.00027397,7]
[334428703,1723089040047,-501.5907601,0.00027397,7]
[334428704,1723089040058,-500.0,0.00027397,7]
[334428705,1723089040069,-539.61177197,0.00027397,7]
[334428706,1723089040080,-529.21,0.00027397,7]
[334428707,1723089040091,-517.03596231,0.00027397,7]
[334428708,1723089040102,-500.0,0.00027397,7]
[334428709,1723089040112,-500.0,0.00027397,7]
[334428710,1723089040123,-500.0,0.00027397,7]
[334428711,1723089040134,-700.87,0.00027397,7]
[334428712,1723089040144,-500.0,0.00027397,7]
[334428713,1723089040154,-500.0,0.00027397,7]
[334428714,1723089040164,-502.35502771,0.00027397,7]
[334428716,1723089040175,-500.0,0.00027397,7]
[334428718,1723089040185,-500.0,0.00027397,7]
[334428719,1723089040196,-503.9081312,0.00027397,7]
[334428720,1723089040208,-502.26783354,0.00027397,7]
[334428721,1723089040220,-500.0,0.00027397,7]
[334428722,1723089040232,-501.07263207,0.00027397,7]
[334428723,1723089040242,-502.1922213,0.00027397,7]
[334428724,1723089040256,-500.0,0.00027397,7]
[334428725,1723089040266,-500.0,0.00027397,7]
[334428726,1723089040280,-1536.71,0.00027397,7]
[334428727,1723089040290,-500.0,0.00027397,7]
[334428728,1723089040301,-500.0,0.00027397,7]
[334428730,1723089040312,-500.0,0.00027397,7]
[334428731,1723089040323,-500.0,0.00027397,2]
[334428732,1723089040334,-500.0,0.00027397,2]
[334428733,1723089040344,-468.55653153,0.00027397,2]
[334428734,1723089040355,-503.96,0.00027397,7]
[334428735,1723089040368,-500.0,0.00027397,7]
[334428736,1723089040379,-500.0,0.00027397,7]
[334428737,1723089040390,-151.0,0.00027397,7]
[334428738,1723089040402,-500.0,0.00027397,7]
[334428739,1723089040414,-500.0,0.00027397,7]
[334428740,1723089040426,-1033.23,0.00027397,7]
[334428741,1723089040438,-1235.28,0.00027397,7]
[334428742,1723089040452,-500.0,0.00027397,7]
[334428743,1723089040464,-550.37,0.00027397,7]
[334428744,1723089040474,-500.0,0.00027397,7]
[334428745,1723089040487,-500.0,0.00027397,7]
[334428746,1723089040498,-622.14,0.00027397,7]
[334428747,1723089040511,-505.26955918,0.00027397,7]
[334428748,1723089040524,-1103.32,0.00027397,7]
[334428749,1723089040534,-500.0,0.00027397,2]
[334428750,1723089040544,-500.0,0.00027397,7]
[334428751,1723089040555,-500.0,0.00027397,7]
[334428752,1723089040565,-1180.33,0.00027397,7]
[334428753,1723089040578,-500.0,0.00027397,7]
[334428754,1723089040588,-500.0,0.00027397,7]
[334428755,1723089040601,-500.0,0.00027397,7]
[334428756,1723089040612,-500.0,0.00027397,7]
[334428757,1723089040625,-1272.21,0.00027397,7]
[334428758,1723089040635,-500.0,0.00027397,7]
[334428759,1723089040650,-503.31607634,0.00027397,7]
[334428760,1723089040661,-500.0,0.00027397,7]
[334428761,1723089040673,-500.0,0.00027397,7]
[334428762,1723089040685,-151.0,0.00027397,7]
[334428763,1723089040695,-524.95,0.00027397,7]
[334428764,1723089040706,-500.0,0.00027397,7]
[334428765,1723089040718,-500.0,0.00027397,7]
[334428766,1723089040731,-500.0,0.00027397,7]
[334428767,1723089040744,-500.0,0.00027397,7]
[334428768,1723089040754,-1112.92,0.00027397,7]
[334428769,1723089040764,-500.0,0.00027397,7]
[334428770,1723089040777,-500.0,0.00027397,7]
[334428771,1723089040787,-500.0,0.00027397,7]
[334428772,1723089040797,-500.0,0.00027397,7]
[334428776,1723089040808,-500.0,0.00027397,7]
[334428780,1723089040818,-500.0,0.00027397,7]
[334428783,1723089040829,-500.0,0.00027397,7]
[334428785,1723089040839,-500.0,0.00027397,7]
[334428787,1723089040849,-500.0,0.00027397,7]
[334428788,1723089040860,-500.0,0.00027397,7]
[334428790,1723089040870,-500.0,0.00027397,7]
[334428792,1723089040881,-500.0,0.00027397,7]
[334428794,1723089040891,-500.0,0.00027397,7]
[334428796,1723089040901,-565.76,0.00027397,7]
[334428798,1723089040912,-1863.54,0.00027397,7]
[334428799,1723089040922,-500.0,0.00027397,7]
[334428800,1723089040932,-500.0,0.00027397,7]
[334428802,1723089040942,-539.45,0.00027397,7]
[334428804,1723089040953,-500.0,0.00027397,7]
[334428806,1723089040964,-503.08748203,0.00027397,7]
[334428833,1723089041198,-573.43,0.00027397,7]
[334428835,1723089041207,-504.14405315,0.00027397,7]
[334428837,1723089041217,-500.0,0.00027397,7]
[334428839,1723089041227,-500.0,0.00027397,7]
[334428841,1723089041236,-500.0,0.00027397,7]
[334428844,1723089041246,-500.0,0.00027397,7]
[334428847,1723089041270,-500.0,0.00027397,7]
[334428849,1723089041281,-500.0,0.00027397,7]
[334428851,1723089041291,-500.0,0.00027397,7]
[334428853,1723089041302,-500.0,0.00027397,7]
[334428855,1723089041313,-500.0,0.00027397,7]
[334428857,1723089041323,-503.92345696,0.00027397,7]
[334428860,1723089041333,-644.23271019,0.00027397,7]
[334428862,1723089041343,-443.20168161,0.00027397,7]
[334428863,1723089041355,-543.25624282,0.00027397,7]
[334428866,1723089041367,-500.0,0.00027397,7]
[334428868,1723089041378,-505.05980849,0.00027397,7]
[334428870,1723089041388,-500.0,0.00027397,7]
[334428872,1723089041399,-500.0,0.00027397,7]
[334428874,1723089041409,-500.0,0.00027397,7]
[334428876,1723089041419,-854.88,0.00027397,7]
[334428878,1723089041430,-500.0,0.00027397,7]
[334428881,1723089041440,-646.16877691,0.00027397,7]
[334428883,1723089041450,-1574.46,0.00027397,7]
[334428885,1723089041461,-500.0,0.00027397,7]
[334428887,1723089041471,-500.0,0.00027397,7]
[334428889,1723089041481,-500.0,0.00027397,7]
[334428891,1723089041491,-500.0,0.00027397,7]
[334428892,1723089041501,-500.0,0.00027397,7]
[334428894,1723089041511,-500.86677046,0.00027397,7]
[334428896,1723089041522,-533.88832438,0.00027397,7]
[334428898,1723089041532,-502.43835834,0.00027397,7]
[334428900,1723089041542,-500.0,0.00027397,7]
[334428902,1723089041552,-500.0,0.00027397,7]
[334428905,1723089041562,-500.0,0.00027397,2]
[334428907,1723089041572,-1153.44,0.00027397,7]
[334428909,1723089041582,-500.0,0.00027397,7]
[334428910,1723089041592,-501.54936867,0.00027397,7]
[334428911,1723089041601,-279.90491616,0.00027397,7]
[334428912,1723089041611,-503.60324187,0.00027397,7]
[334428913,1723089041622,-1446.16,0.00027397,7]
[334428914,1723089041632,-500.0,0.00027397,7]
[334428915,1723089041642,-500.0,0.00027397,7]
[334428916,1723089041656,-500.0,0.00027397,7]
[334428917,1723089041666,-1785.5,0.00027397,7]
[334428918,1723089041676,-500.0,0.00027397,7]
[334428919,1723089041686,-154.436173,0.00027397,2]
[334428920,1723089041697,-500.0,0.00027397,7]
[334428921,1723089041707,-503.88671364,0.00027397,7]
[334428922,1723089041719,-504.50701379,0.00027397,7]
[334428923,1723089041729,-500.0,0.00027397,7]
[334428924,1723089041739,-500.0,0.00027397,7]
[334428925,1723089041753,-500.0,0.00027397,7]
[334428926,1723089041763,-617.07,0.00027397,7]
[334428927,1723089041774,-500.0,0.00027397,7]
[334428929,1723089041784,-500.0,0.00027397,7]
[334428931,1723089041794,-710.38,0.00027397,7]
[334428933,1723089041804,-500.0,0.00027397,7]
[334428935,1723089041815,-500.76014814,0.00027397,7]
[334428937,1723089041825,-500.0,0.00027397,7]
[334428939,1723089041835,-507.30544404,0.00027397,7]
[334428941,1723089041846,-500.0,0.00027397,7]
[334428943,1723089041856,-504.32923499,0.00027397,7]
[334428945,1723089041866,-500.99867296,0.00027397,7]
[334428947,1723089041876,-500.0,0.00027397,7]
[334428949,1723089041886,-643.55,0.00027397,7]
[334428951,1723089041896,-500.0,0.00027397,7]
[334428952,1723089041906,-500.0,0.00027397,7]
[334428954,1723089041915,-772.42,0.00027397,7]
[334428956,1723089041925,-501.7668624,0.00027397,7]
[334428958,1723089041935,-500.0,0.00027397,7]
[334428960,1723089041945,-500.0,0.00027397,7]
[334428962,1723089041954,-500.0,0.00027397,7]
[334428964,1723089041963,-151.0,0.00027397,7]
[334428966,1723089041973,-738.47,0.00027397,7]
[334428968,1723089041983,-500.0,0.00027397,7]
[334428970,1723089041993,-1401.14,0.00027397,7]
[334428972,1723089042003,-1742.27,0.00027397,7]
[334428974,1723089042013,-720.29,0.00027397,7]
[334428976,1723089042022,-500.0,0.00027397,7]
[334428978,1723089042032,-500.0,0.00027397,7]
[334428980,1723089042042,-861.23,0.00027397,7]
[334428982,1723089042052,-500.0,0.00027397,7]
[334428984,1723089042062,-153.502971,0.00027397,7]
[334428986,1723089042072,-505.09385312,0.00027397,7]
[334428988,1723089042082,-500.0,0.00027397,7]
[334428990,1723089042092,-846.41,0.00027397,7]
[334428992,1723089042102,-501.18642415,0.00027397,7]
[334428994,1723089042112,-500.0,0.00027397,7]
[334428996,1723089042121,-908.56,0.00027397,7]
[334428998,1723089042131,-505.11,0.00027397,7]
[334429001,1723089042141,-367.64667449,0.00027397,7]
[334429003,1723089042151,-500.0,0.00027397,7]
[334429005,1723089042160,-500.0,0.00027397,7]
[334429007,1723089042170,-1580.04,0.00027397,7]
[334429009,1723089042179,-581.33432109,0.00027397,7]
[334429011,1723089042189,-500.0,0.00027397,7]
[334429013,1723089042198,-542.08230402,0.00027397,7]
[334429015,1723089042208,-1022.77,0.00027397,7]
[334429017,1723089042218,-500.0,0.00027397,7]
[334429019,1723089042228,-503.75988016,0.00027397,7]
[334429021,1723089042237,-500.0,0.00027397,7]
[334429023,1723089042246,-500.0,0.00027397,7]
[334429025,1723089042255,-151.0,0.00027397,7]
[334429027,1723089042265,-500.0,0.00027397,7]
[334429029,1723089042276,-502.76039923,0.00027397,7]
[334429031,1723089042286,-539.02459896,0.00027397,7]
[334429033,1723089042296,-500.0,0.00027397,7]
[334429035,1723089042306,-502.13603599,0.00027397,7]
[334429037,1723089042315,-500.0,0.00027397,7]
[334429039,1723089042325,-500.0,0.00027397,7]
[334429041,1723089042335,-500.0,0.00027397,7]
[334429043,1723089042344,-503.48049863,0.00027397,7]
[334429045,1723089042354,-500.0,0.00027397,7]
[334429047,1723089042363,-501.97283445,0.00027397,7]
[334429049,1723089042373,-533.08,0.00027397,7]
[334429051,1723089042383,-1025.9,0.00027397,7]
[334429054,1723089042393,-500.0,0.00027397,7]
[334429056,1723089042403,-500.0,0.00027397,7]
[334429058,1723089042413,-151.0,0.00027397,7]
[334429060,1723089042423,-501.49119047,0.00027397,7]
[334429062,1723089042433,-1519.91,0.00027397,7]
[334429064,1723089042443,-500.0,0.00027397,7]
[334429066,1723089042452,-500.0,0.00027397,7]
[334429068,1723089042462,-500.0,0.00027397,7]
[334429070,1723089042472,-526.78759238,0.00027397,7]
[334429072,1723089042483,-500.0,0.00027397,7]
[334429074,1723089042493,-1080.67,0.00027397,7]
[334429076,1723089042503,-371.19539826,0.00027397,7]
[334429078,1723089042514,-1109.53,0.00027397,7]
[334429080,1723089042525,-527.79,0.00027397,7]
[334429082,1723089042542,-500.0,0.00027397,7]
[334429084,1723089042552,-501.49324101,0.00027397,7]
[334429086,1723089042562,-500.0,0.00027397,7]
[334429088,1723089042572,-549.43,0.00027397,7]
[334429090,1723089042582,-500.0,0.00027397,7]
[334429092,1723089042591,-500.0,0.00027397,7]
[334429094,1723089042601,-500.0,0.00027397,7]
[334429096,1723089042610,-500.0,0.00027397,7]
[334429098,1723089042619,-1411.03,0.00027397,7]
[334429100,1723089042628,-632.50901331,0.00027397,7]
[334429102,1723089042639,-500.0,0.00027397,7]
[334429104,1723089042652,-502.23178626,0.00027397,7]
[334429107,1723089042663,-642.8,0.00027397,7]
[334429109,1723089042673,-500.0,0.00027397,7]
[334429111,1723089042683,-500.0,0.00027397,7]
[334429113,1723089042693,-164.03824881,0.00027397,7]
[334429115,1723089042703,-1451.55,0.00027397,7]
[334429117,1723089042713,-500.0,0.00027397,7]
[334429119,1723089042723,-500.0,0.00027397,7]
[334429121,1723089042733,-500.0,0.00027397,7]
[334429123,1723089042743,-500.0,0.00027397,7]
[334429125,1723089042752,-501.00062418,0.00027397,7]
[334429127,1723089042762,-500.0,0.00027397,7]
[334429129,1723089042771,-500.82578428,0.00027397,7]
[334429131,1723089042782,-500.0,0.00027397,7]
[334429133,1723089042792,-500.0,0.00027397,7]
[334429135,1723089042802,-500.0,0.00027397,7]
[334429137,1723089042811,-500.0,0.00027397,7]
[334429139,1723089042821,-799.33,0.00027397,7]
[334429141,1723089042831,-500.0,0.00027397,7]
[334429143,1723089042842,-500.0,0.00027397,7]
[334429145,1723089042852,-501.02875386,0.00027397,7]
[334429148,1723089042862,-858.08,0.00027397,7]
[334429150,1723089042873,-558.37,0.00027397,7]
[334429152,1723089042883,-501.88127732,0.00027397,7]
[334429154,1723089042893,-151.0,0.00027397,7]
[334429156,1723089042902,-502.33797079,0.00027397,7]
[334429158,1723089042911,-543.21899016,0.00027397,7]
[334429160,1723089042921,-156.565714,0.00027397,7]
[334429162,1723089042930,-500.0,0.00027397,7]
[334429164,1723089042939,-151.0,0.00027397,7]
[334429166,1723089042949,-500.0,0.00027397,7]
[334429168,1723089042959,-501.68,0.00027397,7]
[334429170,1723089042968,-501.32944552,0.00027397,7]
[334429172,1723089042978,-500.0,0.00027397,7]
[334429174,1723089042988,-151.0,0.00027397,7]
[334429176,1723089042997,-459.18101564,0.00027397,7]
[334429178,1723089043007,-502.61623539,0.00027397,7]
[334429180,1723089043016,-500.0,0.00027397,7]
[334429183,1723089043028,-500.0,0.00027397,7]
[334429185,1723089043038,-500.0,0.00027397,7]
[334429187,1723089043047,-500.0,0.00027397,7]
[334429189,1723089043056,-500.0,0.00027397,7]
[334429191,1723089043066,-500.0,0.00027397,7]
[334429193,1723089043075,-500.0,0.00027397,7]
[334429195,1723089043085,-500.0,0.00027397,7]
[334429197,1723089043096,-500.0,0.00027397,7]
[334429199,1723089043107,-500.0,0.00027397,7]
[334429201,1723089043116,-500.0,0.00027397,7]
[334429203,1723089043126,-500.0,0.00027397,7]
[334429205,1723089043135,-500.0,0.00027397,7]
[334429208,1723089043147,-599.42,0.00027397,7]
[334429210,1723089043158,-500.0,0.00027397,7]
[334429212,1723089043167,-500.0,0.00027397,7]
[334429214,1723089043177,-500.0,0.00027397,7]
[334429216,1723089043188,-500.0,0.00027397,7]
[334429218,1723089043197,-513.73142351,0.00027397,7]
[334429220,1723089043208,-640.3,0.00027397,7]
[334429223,1723089043219,-504.29775937,0.00027397,7]
[334429225,1723089043228,-500.0,0.00027397,7]
[334429227,1723089043238,-503.02876205,0.00027397,7]
[334429229,1723089043250,-501.62698562,0.00027397,7]
[334429231,1723089043260,-152.989356,0.00027397,7]
[334429233,1723089043270,-500.0,0.00027397,7]
[334429235,1723089043282,-500.0,0.00027397,7]
[334429237,1723089043291,-500.0,0.00027397,7]
[334429239,1723089043301,-500.0,0.00027397,7]
[334429241,1723089043310,-500.0,0.00027397,7]
[334429243,1723089043319,-631.4,0.00027397,7]
[334429246,1723089043329,-1114.65,0.00027397,7]
[334429248,1723089043339,-500.0,0.00027397,7]
[334429250,1723089043348,-500.0,0.00027397,7]
[334429252,1723089043358,-500.0,0.00027397,7]
[334429254,1723089043367,-1285.5,0.00027397,7]
[334429257,1723089043378,-500.0,0.00027397,7]
[334429259,1723089043388,-502.2114673,0.00027397,7]
[334429261,1723089043399,-500.0,0.00027397,7]
[334429263,1723089043409,-588.47,0.00027397,7]
[334429266,1723089043420,-500.0,0.00027397,7]
[334429268,1723089043430,-502.31641083,0.00027397,7]
[334429270,1723089043439,-500.0,0.00027397,7]
[334429272,1723089043449,-500.0,0.00027397,7]
[334429274,1723089043459,-151.0,0.00027397,7]
[334429276,1723089043468,-1256.53,0.00027397,7]
[334429278,1723089043478,-500.0,0.00027397,7]
[334429281,1723089043488,-500.0,0.00027397,7]
[334429283,1723089043497,-500.0,0.00027397,7]
[334429286,1723089043506,-500.0,0.00027397,7]
[334429289,1723089043515,-1027.23,0.00027397,7]
[334429291,1723089043526,-500.0,0.00027397,7]
[334429293,1723089043535,-500.0,0.00027397,7]
[334429295,1723089043545,-877.99,0.00027397,7]
[334429297,1723089043554,-503.30511167,0.00027397,7]
[334429299,1723089043564,-500.0,0.00027397,7]
[334429301,1723089043573,-500.0,0.00027397,7]
[334429303,1723089043583,-500.0,0.00027397,7]
[334429305,1723089043592,-200.56675743,0.00027397,7]
[334429307,1723089043602,-500.0,0.00027397,7]
[334429309,1723089043612,-500.0,0.00027397,7]
[334429311,1723089043622,-500.0,0.00027397,7]
[334429318,1723089043686,-500.0,0.00027397,7]
[334429321,1723089043696,-500.0,0.00027397,7]
[334429322,1723089043705,-500.0,0.00027397,7]
[334429325,1723089043715,-500.0,0.00027397,7]
[334429327,1723089043725,-500.0,0.00027397,7]
[334429329,1723089043735,-500.0,0.00027397,7]
[334429331,1723089043745,-151.0,0.00027397,7]
[334429333,1723089043755,-3541.65,0.00027397,7]
[334429335,1723089043765,-500.0,0.00027397,7]
[334429337,1723089043776,-163.288024,0.00027397,7]
[334429339,1723089043785,-2846.86,0.00027397,7]
[334429341,1723089043795,-500.0,0.00027397,7]
[334429343,1723089043806,-1825.02,0.00027397,7]
[334429345,1723089043816,-500.0,0.00027397,7]
[334429347,1723089043826,-500.0,0.00027397,7]
[334429349,1723089043834,-2107.39,0.00027397,7]
[334429352,1723089043843,-500.0,0.00027397,7]
[334429355,1723089043853,-635.76,0.00027397,7]
[334429358,1723089043862,-500.0,0.00027397,7]
[334429361,1723089043871,-500.0,0.00027397,7]
[334429365,1723089043881,-475.17213188,0.00027397,7]
[334429370,1723089043891,-761.93,0.00027397,7]
[334429374,1723089043901,-503.20340676,0.00027397,7]
[334429377,1723089043912,-151.0,0.00027397,7]
[334429379,1723089043922,-151.0,0.00027397,7]
[334429381,1723089043931,-500.0,0.00027397,7]
[334429383,1723089043939,-581.96,0.00027397,7]
[334429385,1723089043949,-500.0,0.00027397,7]
[334429387,1723089043958,-500.0,0.00027397,7]
[334429389,1723089043968,-732.94,0.00027397,7]
[334429391,1723089043977,-503.62180148,0.00027397,7]
[334429393,1723089043987,-151.0,0.00027397,7]
[334429395,1723089043997,-503.32153423,0.00027397,7]
[334429397,1723089044007,-200.0,0.00027397,7]
[334429399,1723089044016,-500.0,0.00027397,7]
[334429401,1723089044027,-250.245087,0.00027397,7]
[334429403,1723089044036,-501.55399344,0.00027397,7]
[334429405,1723089044047,-1316.77,0.00027397,7]
[334429408,1723089044056,-475.08023048,0.00027397,7]
[334429410,1723089044066,-501.37555206,0.00027397,7]
[334429411,1723089044075,-500.0,0.00027397,7]
[334429413,1723089044084,-504.06897648,0.00027397,7]
[334429415,1723089044094,-500.0,0.00027397,7]
[334429417,1723089044104,-501.05860132,0.00027397,7]
[334429419,1723089044113,-500.0,0.00027397,7]
[334429421,1723089044122,-1833.31,0.00027397,7]
[334429423,1723089044133,-1906.27,0.00027397,7]
[334429425,1723089044143,-169.63254197,0.00027397,7]
[334429427,1723089044155,-500.0,0.00027397,7]
[334429429,1723089044167,-201.53114008,0.00027397,7]
[334429431,1723089044177,-2187.08,0.00027397,7]
[334429434,1723089044187,-500.0,0.00027397,7]
[334429436,1723089044200,-500.0,0.00027397,7]
[334429438,1723089044209,-151.0,0.00027397,7]
[334429440,1723089044220,-151.0,0.00027397,7]
[334429442,1723089044230,-500.0,0.00027397,7]
[334429444,1723089044239,-2544.2,0.00027397,7]
[334429446,1723089044250,-151.0,0.00027397,7]
[334429448,1723089044259,-501.00813868,0.00027397,7]
[334429450,1723089044268,-500.0,0.00027397,7]
[334429452,1723089044279,-151.0,0.00027397,7]
[334429454,1723089044288,-524.94,0.00027397,7]
[334429456,1723089044298,-500.0,0.00027397,7]
[334429458,1723089044308,-500.0,0.00027397,7]
[334429460,1723089044317,-500.0,0.00027397,7]
[334429462,1723089044326,-500.0,0.00027397,7]
[334429464,1723089044336,-500.0,0.00027397,7]
[334429466,1723089044346,-740.67,0.00027397,7]
[334429468,1723089044355,-500.0,0.00027397,7]
[334429470,1723089044365,-500.0,0.00027397,7]
[334429472,1723089044375,-500.0,0.00027397,7]
[334429474,1723089044385,-500.0,0.00027397,7]
[334429476,1723089044394,-500.0,0.00027397,7]
[334429478,1723089044406,-500.0,0.00027397,7]
[334429480,1723089044418,-500.0,0.00027397,7]
[334429483,1723089044429,-500.0,0.00027397,7]
[334429485,1723089044440,-500.0,0.00027397,7]
[334429487,1723089044450,-2800.51,0.00027397,7]
[334429489,1723089044460,-502.03406353,0.00027397,7]
[334429491,1723089044469,-500.0,0.00027397,7]
[334429493,1723089044480,-2780.86,0.00027397,7]
[334429495,1723089044491,-500.0,0.00027397,7]
[334429497,1723089044500,-500.0,0.00027397,7]
[334429499,1723089044511,-500.0,0.00027397,7]
[334429501,1723089044521,-500.0,0.00027397,7]
[334429503,1723089044531,-500.0,0.00027397,7]
[334429505,1723089044540,-500.0,0.00027397,7]
[334429507,1723089044550,-500.0,0.00027397,7]
[334429509,1723089044559,-500.0,0.00027397,7]
[334429512,1723089044570,-505.18493295,0.00027397,7]
[334429514,1723089044580,-504.0236675,0.00027397,7]
[334429515,1723089044589,-502.39251373,0.00027397,7]
[334429517,1723089044599,-2608.56,0.00027397,7]
[334429519,1723089044609,-500.0,0.00027397,7]
[334429520,1723089044620,-500.0,0.00027397,7]
[334429521,1723089044629,-4097.14,0.00027397,7]
[334429522,1723089044640,-500.0,0.00027397,7]
[334429523,1723089044653,-566.24,0.00027397,7]
[334429524,1723089044663,-500.0,0.00027397,7]
[334429525,1723089044675,-350.66371931,0.00027397,7]
[334429526,1723089044687,-646.08585244,0.00027397,7]
[334429527,1723089044699,-500.0,0.00027397,7]
[334429528,1723089044710,-500.0,0.00027397,7]
[334429529,1723089044721,-500.0,0.00027397,7]
[334429531,1723089044734,-503.11197055,0.00027397,7]
[334429533,1723089044745,-500.0,0.00027397,7]
[334429535,1723089044757,-500.0,0.00027397,7]
[334429537,1723089044768,-500.0,0.00027397,7]
[334429539,1723089044779,-500.0,0.00027397,7]
[334429541,1723089044790,-13061.44,0.00027397,7]
[334429543,1723089044801,-1018.67,0.00027397,7]
[334429545,1723089044811,-944.14,0.00027397,7]
[334429547,1723089044820,-502.71337189,0.00027397,7]
[334429549,1723089044829,-500.0,0.00027397,7]
[334429551,1723089044839,-500.0,0.00027397,7]
[334429553,1723089044848,-502.49036166,0.00027397,7]
[334429555,1723089044858,-500.0,0.00027397,7]
[334429557,1723089044868,-500.0,0.00027397,7]
[334429559,1723089044878,-712.14,0.00027397,7]
[334429561,1723089044887,-617.07844097,0.00027397,7]
[334429564,1723089044897,-500.0,0.00027397,7]
[334429566,1723089044907,-500.0,0.00027397,7]
[334429568,1723089044916,-3482.5,0.00027397,7]
[334429570,1723089044925,-554.24,0.00027397,7]
[334429572,1723089044935,-585.3345814,0.00027397,7]
[334429574,1723089044944,-547.25,0.00027397,7]
[334429576,1723089044954,-726.71,0.00027397,7]
[334429578,1723089044964,-500.0,0.00027397,7]
[334429580,1723089044974,-500.0,0.00027397,7]
[334429582,1723089044985,-501.67769796,0.00027397,7]
[334429584,1723089044994,-503.52231645,0.00027397,7]
[334429586,1723089045003,-500.0,0.00027397,7]
[334429588,1723089045013,-1095.09,0.00027397,7]
[334429590,1723089045023,-500.0,0.00027397,7]